Cogmind - Beta 10 @@@ ROGUE MODE // 2020.09.15 @ 22:04:56 Player: 3.14 Result: Self-destructed Performance ------------- Evolutions (3) 1500 Regions Visited (6) 1200 Robots Destroyed (98) 490 Value Destroyed (2765) 2765 Prototype IDs (7) 140 Alien Tech Used (0) 0 Bonus (44) 44 TOTAL SCORE: 6139 Bonus ------- High Alert Combat Kills 44 Cogmind --------- Core Integrity 670/700 Matter 165/300 Energy 48/160 System Corruption 0% Temperature Cool (0) Movement Hovering (48) Location -7/Factory Parts ------- > --- POWER (1) -------- Light Nuclear Core > --- PROPULSION (4) --- Hover Unit Improved Hover Unit Improved Hover Unit Improved Hover Unit > --- UTILITY (6) ------ Medium Storage Unit Experimental Sensor Array Advanced Signal Interpreter Hacking Suite Hacking Suite System Shield > --- WEAPON (2) ------- Proton Missile Launcher Great Maul > --- INVENTORY (8) ---- Light Nuclear Core Hover Unit Hacking Suite Hacking Suite System Shield System Shield System Backup Module Peak State ------------ > --- POWER ------------ Light Nuclear Core > --- PROPULSION ------- Advanced Treads Advanced Treads Advanced Treads Advanced Treads > --- UTILITY ---------- Medium Storage Unit High-capacity Storage Unit High-capacity Storage Unit High-capacity Storage Unit Improved Propulsion Shielding > --- WEAPON ----------- Enhanced Autogun Enhanced Autogun > --- INVENTORY -------- Light Nuclear Core Light Nuclear Core Hover Unit Hover Unit Improved Hover Unit Improved Hover Unit Improved Hover Unit High-capacity Battery Advanced Weight Redist. System Experimental Sensor Array Advanced Signal Interpreter Hacking Suite Hacking Suite Hacking Suite Hacking Suite System Shield System Shield System Shield System Backup Module Lightning Gun Lightning Gun Enhanced Autogun Enhanced Autogun Proton Missile Launcher Proton Missile Launcher Datajack Great Maul [Rating: 38] Favorites ----------- Power Ion Engine Engine Ion Engine Power Core Light Nuclear Core Propulsion Light Treads Treads Light Treads Hover Unit Improved Hover Unit Utility High-capacity Storage Unit Device Advanced Heat Sink Storage High-capacity Storage Unit Processor Advanced Signal Interpreter Hackware Hacking Suite Protection Hardened Light Armor Plating Weapon Enhanced Autogun Energy Gun Lightning Gun Energy Cannon Advanced Beam Cannon Ballistic Gun Enhanced Autogun Launcher Grenade Launcher Impact Weapon Great Maul Special Melee Weapon Datajack Build | -11 -10 -10 -10 -9 -8 -7 ------- Run | Scr Mat Min Exi Min Mat Fac Slots Evolved 6 | . . . . . 4 2 Power . | . . . . . . . Propulsion 2 | . . . . . 2 . Utility 4 | . . . . . 2 2 Weapon . | . . . . . . . Parts Attached 92 | 6 14 2 . 3 54 13 Power 6 | 1 1 . . . 4 . Engine 3 | 1 1 . . . 1 . Core 3 | . . . . . 3 . Reactor . | . . . . . . . Propulsion 28 | 2 1 1 . 1 19 4 Treads 24 | 2 1 1 . 1 19 . Leg . | . . . . . . . Wheel . | . . . . . . . Hover 4 | . . . . . . 4 Flight . | . . . . . . . Utility 27 | 1 7 . . . 13 6 Device 4 | . . . . . 3 1 Storage 11 | 1 6 . . . 3 1 Processor 1 | . . . . . . 1 Hackware 3 | . . . . . . 3 Protection 8 | . 1 . . . 7 . Artifact . | . . . . . . . Weapon 31 | 2 5 1 . 2 18 3 Energy Gun 10 | 1 2 . . . 7 . Energy Cannon 1 | . . . . . 1 . Ballistic Gun 14 | 1 2 . . 2 9 . Ballistic Cannon . | . . . . . . . Launcher 4 | . 1 1 . . 1 1 Special Weapon . | . . . . . . . Impact Weapon 1 | . . . . . . 1 Slashing Weapon . | . . . . . . . Piercing Weapon . | . . . . . . . Special Melee Weapon 1 | . . . . . . 1 Unidentified Prototypes 4 | . . . . . 4 . Parts Lost 14 | . 1 2 . 1 9 1 Power 1 | . . . . . 1 . Propulsion 3 | . . 1 . . 2 . Utility 4 | . . . . . 4 . Weapon 6 | . 1 1 . 1 2 1 Highest Loss Streak 4 | . 1 1 . 1 4 1 Average Slot Usage (%) 97 | . 98 94 85 98 98 93 Engine 7 | . 14 14 14 14 3 . Core 3 | . . . . . 5 7 Treads 30 | . 27 28 28 26 35 6 Hover 1 | . . . . . . 23 Device 2 | . . . . . 3 5 Storage 23 | . 25 28 28 28 23 11 Hackware 1 | . . . . . . 17 Protection 4 | . . . . . 7 1 Energy Gun 1 | . 3 . . . 1 . Ballistic Gun 17 | . 24 16 . 28 16 3 Launcher 1 | . . 6 14 . . . Naked Turns . | . . . . . . . Heaviest Build 115 | 13 72 72 72 72 115 109 Greatest Support 88 | 40 40 40 40 40 88 88 Greatest Overweight (x) 4 | 4 1 1 1 3 1 1 Average Overweight (x) . | . . 1 1 1 . . Largest Inventory Capacity 32 | 6 20 20 20 20 28 32 Average Capacity 20 | 5 13 20 20 20 24 13 Most Carried 28 | 4 18 19 19 19 28 28 Average Carried 19 | 2 11 18 19 17 24 12 Final Capacity 28 | 6 20 20 20 20 28 8 Final Carried 28 | 4 17 19 19 17 28 7 Class Distribution -------------------- 57% | Hauler-Mutant 22% | Scavenger-Mutant 18% | Mutant Dominant Class ---------------- Mutant | -10/Materials Hauler-Mutant | -10/Mines Hauler-Mutant | -10/Exiles Hauler-Mutant | -9/Mines Hauler-Mutant | -8/Materials Scavenger-Mutant | -7/Factory Resources | -11 -10 -10 -10 -9 -8 -7 ----------- Run | Scr Mat Min Exi Min Mat Fac Matter Collected 2100 | 269 318 45 . 40 1428 . Remotely . | . . . . . . . Salvage Created 4057 | 109 864 140 . 121 2823 . Parts 213 | 3 41 5 . 8 156 . Haulers Intercepted 7 | . 2 . . . 5 . Recyclers Shooed 6 | . 2 . . . 4 . Parts Field Recycled . | . . . . . . . Retrieved Matter . | . . . . . . . Parts Self-Destructed . | . . . . . . . Prevented . | . . . . . . . Kills | -11 -10 -10 -10 -9 -8 -7 ------- Run | Scr Mat Min Exi Min Mat Fac Combat Hostiles Destroyed 68 | . 12 12 . 3 41 . Guns 53 | . 12 2 . 1 38 . AOE 13 | . . 10 . 2 1 . Classes Destroyed 13 | 3 5 1 . 1 3 . Worker 7 | 1 . . . . 6 . Tunneler 1 | 1 . . . . . . Hauler 7 | . 2 . . . 5 . Recycler 6 | 1 3 . . . 2 . Operator 5 | . 1 . . . 4 . Watcher 4 | . 1 . . . 3 . Swarmer 3 | . 3 . . . . . Grunt 38 | . 9 2 . 2 25 . Brawler 2 | . . . . . 2 . Duelist 1 | . . . . 1 . . Sentry 9 | . . . . . 9 . Hunter 5 | . . . . . 5 . Assembled 10 | . . 10 . . . . Best Kill Streak 10 | 3 4 10 . 3 8 . Combat Bots Only 10 | . 3 10 . 3 8 . Max Kills in Single Turn 6 | 2 2 6 . 2 2 . Gunslinging . | . . . . . . . Exploded 6 | . . 6 . 2 1 . Melee . | . . . . . . . Uniques/NPCs Destroyed . | . . . . . . . Combat | -11 -10 -10 -10 -9 -8 -7 -------- Run | Scr Mat Min Exi Min Mat Fac Damage Taken 3648 | . 532 310 . 131 2537 138 Core 472 | . 56 57 . . 329 30 Absorbed by Shields . | . . . . . . . Core Remaining (%) 64 | 100 . . . 54 40 . Volleys Fired 263 | 3 54 16 . 3 185 2 Largest 2 | 2 2 2 . 2 2 1 Hottest 110 | 70 85 40 . 40 110 39 Shots Fired 511 | 6 103 26 . 5 369 2 Gun 500 | 6 102 20 . 4 368 . Cannon . | . . . . . . . Launcher 11 | . 1 6 . 1 1 2 Special . | . . . . . . . Kinetic 410 | 3 81 20 . 4 302 . Thermal 24 | 3 21 . . . . . Explosive 9 | . 1 6 . 1 1 . Electromagnetic 68 | . . . . . 66 2 Robot Hit Streak 19 | 1 10 9 . 3 19 . Robot Miss Streak 4 | 1 3 1 . 1 4 2 Penetration Max . | . . . . . . . Secondary Targets 8 | . 1 1 . . 6 . Max Gunslinging Chain 1 | . 1 1 . . 1 . Shots Hit Robots 366 | 3 70 18 . 4 266 5 Core Hits 188 | 3 37 25 . 5 116 2 Critical Hits 1 | . 1 . . . . . Critical Kills . | . . . . . . . Critical Parts Destroyed 1 | . 1 . . . . . Melee Attacks 10 | . . . . . . 10 Impact 9 | . . . . . . 9 Slashing . | . . . . . . . Piercing . | . . . . . . . Sneak Attacks 2 | . . . . . . 2 Combat Hostiles . | . . . . . . . Follow-up Attacks . | . . . . . . . Damage Inflicted 6809 | 51 838 629 . 158 4886 247 Guns 5662 | 48 774 159 . 35 4646 . Cannons . | . . . . . . . Explosions 697 | . 5 470 . 123 58 41 Melee 197 | . . . . . . 197 Ramming 253 | 3 59 . . . 182 9 Kinetic 4446 | 35 649 159 . 35 3568 . Thermal 196 | 13 125 . . . 58 . Explosive 598 | . 5 470 . 123 . . Electromagnetic 1119 | . . . . . 1078 41 Impact 197 | . . . . . . 197 Slashing . | . . . . . . . Piercing . | . . . . . . . Highest Corruption . | . . . . . . . Average Corruption . | . . . . . . . Corruption Purged . | . . . . . . . Overload Shots . | . . . . . . . Overflow Damage 55 | . . 25 . . 18 12 Projectiles . | . . . . . . . Explosions 25 | . . 25 . . . . Melee 30 | . . . . . 18 12 Knockbacks 2 | . . . . . 2 . Impact 2 | . . . . . 2 . Kinetic . | . . . . . . . Secondary . | . . . . . . . Self-Inflicted Damage 78 | . . 39 . 39 . . Shots 2 | . . 1 . 1 . . Rammed 19 | . 9 . . . 9 1 Targets Rammed 23 | 1 9 . . . 12 1 Kicked . | . . . . . . . Crushed 4 | 1 . . . . 3 . Highest Temperature 243 | 27 108 25 . . 243 3 Average Temperature 40 | 14 39 11 . . 45 3 Received Heat Transfer 1461 | . 183 126 . . 1134 18 Siege Activations . | . . . . . . . Robots Corrupted 2 | . . . . . 2 . Combat Hostiles 2 | . . . . . 2 . Parts Fried 14 | . 3 . . . 11 . Impact Corruptions 4 | . 1 . . . 2 1 Robots Melted . | . . . . . . . Combat Hostiles . | . . . . . . . Parts Melted . | . . . . . . . Heat Transferred 420 | 37 333 . . . 50 . Parts Sabotaged . | . . . . . . . Parts Stolen . | . . . . . . . Parts Stripped . | . . . . . . . Power Chain Reactions 1 | . . . . . 1 . Missiles Intercepted . | . . . . . . . Alert | -11 -10 -10 -10 -9 -8 -7 ------- Run | Scr Mat Min Exi Min Mat Fac Peak Influence 465 | 10 210 59 . 90 465 206 Initial 167 | . 9 19 . . 35 167 Average 197 | 1 59 52 . 88 288 183 Maximum Alert Level 2 | . 1 . . . 2 1 Low Security (%) 51 | 100 98 100 . 100 18 70 Level 1 45 | . 1 . . . 75 29 Level 2 3 | . . . . . 5 . Level 3 . | . . . . . . . Level 4 . | . . . . . . . Level 5 . | . . . . . . . High Security . | . . . . . . . Max Security . | . . . . . . . Squads Dispatched 9 | . 1 . . . 6 2 Investigation 3 | . . . . . 2 1 Extermination . | . . . . . . . Reinforcement 6 | . 1 . . . 4 1 Assault . | . . . . . . . Garrison . | . . . . . . . Intercept . | . . . . . . . Construction Impeded 1 | . . . . . 1 . Haulers Reinforced . | . . . . . . . Stealth | -11 -10 -10 -10 -9 -8 -7 --------- Run | Scr Mat Min Exi Min Mat Fac Distress Signals 4 | . . . . . 1 3 Communications Jammed . | . . . . . . . Distress Signals . | . . . . . . . Times Spotted 117 | . 25 11 . 1 73 7 Peak Tracking Total 10 | . 3 10 . 1 5 4 Tactical Retreats 10 | . 2 1 . . 4 3 Traps | -11 -10 -10 -10 -9 -8 -7 ------- Run | Scr Mat Min Exi Min Mat Fac Traps Triggered 1 | . . . . . 1 . Indirectly . | . . . . . . . Trap Hack Attempts . | . . . . . . . Triggered . | . . . . . . . Disarmed . | . . . . . . . Reprogrammed . | . . . . . . . Reused . | . . . . . . . Traps Extracted . | . . . . . . . Installed . | . . . . . . . Triggered . | . . . . . . . Machines | -11 -10 -10 -10 -9 -8 -7 ---------- Run | Scr Mat Min Exi Min Mat Fac Machines Disabled 1 | . . . . 1 . . Max in Single Turn 1 | . . . . 1 . . Machines Sabotaged . | . . . . . . . Garrisons Compromised . | . . . . . . . Overloaded Fab Kills . | . . . . . . . Fab Network Shutdowns . | . . . . . . . Hacking | -11 -10 -10 -10 -9 -8 -7 --------- Run | Scr Mat Min Exi Min Mat Fac Machines Accessed 21 | . 7 . 1 . 12 1 Terminals 15 | . 6 . . . 8 1 Fabricators . | . . . . . . . Repair Stations 2 | . 1 . . . 1 . Recycling Units 1 | . . . . . 1 . Scanalyzers 2 | . . . . . 2 . Garrison Access . | . . . . . . . Total Hacks 58 | . 19 . 1 . 36 2 Successful 31 | . 11 . 1 . 19 . Failed 26 | . 8 . . . 16 2 Catastrophic 6 | . . . . . 5 1 Database Lockouts 1 | . . . . . 1 . Manual 34 | . 16 . . . 16 2 Terminals 44 | . 17 . . . 25 2 Fabricators . | . . . . . . . Repair Stations 6 | . 2 . . . 4 . Recycling Units 3 | . . . . . 3 . Scanalyzers 4 | . . . . . 4 . Garrison Access . | . . . . . . . Terminal Hacks 15 | . 5 . 1 . 9 . Record 1 | . . . 1 . . . Part Schematic 2 | . 1 . . . 1 . Robot Analysis 1 | . 1 . . . . . Prototype ID Bank 1 | . . . . . 1 . Branch Access Points 1 | . . . . . 1 . Terminal Index 2 | . . . . . 2 . Scanalyzer Index 1 | . 1 . . . . . Alert Level 1 | . . . . . 1 . Unreport Threat 2 | . . . . . 2 . Locate Traps 2 | . 1 . . . 1 . Zone Layout 1 | . 1 . . . . . Fabricator Hacks . | . . . . . . . Repair Station Hacks 6 | . 2 . . . 4 . Scan Component 3 | . 1 . . . 2 . Repair 3 | . 1 . . . 2 . Recycling Unit Hacks 1 | . . . . . 1 . Retrieve Components 1 | . . . . . 1 . Scanalyzer 3 | . . . . . 3 . Insert Component 2 | . . . . . 2 . Analyze 1 | . . . . . 1 . Garrison Access Hacks . | . . . . . . . Unauthorized Hacks 6 | . 4 . . . 2 . Terminals 6 | . 4 . . . 2 . Botnet 4 | . 3 . . . 1 . Operators 2 | . 1 . . . 1 . Fabricators . | . . . . . . . Repair Stations . | . . . . . . . Recycling Units . | . . . . . . . Scanalyzers . | . . . . . . . Garrison Access . | . . . . . . . Data Cores Recovered 1 | . . . . . 1 . Used . | . . . . . . . Hacking Detections 16 | . 5 . . . 10 1 Full Trace Events 2 | . . . . . 1 1 Feedback Events . | . . . . . . . Feedback Blocked . | . . . . . . . Robot Schematics Acquired . | . . . . . . . Robots Built . | . . . . . . . Matter . | . . . . . . . Time . | . . . . . . . Total Robot Build Rating . | . . . . . . . Part Schematics Acquired 3 | . 1 . . . 2 . Parts Built . | . . . . . . . Matter . | . . . . . . . Time . | . . . . . . . Total Part Build Rating . | . . . . . . . Parts Repaired 3 | . 1 . . . 2 . Time 144 | . 26 . . . 118 . Parts Recycled . | . . . . . . . Recycled Matter . | . . . . . . . Retrieved Matter . | . . . . . . . Retrieved Components 10 | . . . . . 10 . Parts Scanalyzed 1 | . . . . . 1 . Part Schematics Acquired 1 | . . . . . 1 . Parts Damaged . | . . . . . . . Bothacking | -11 -10 -10 -10 -9 -8 -7 ------------ Run | Scr Mat Min Exi Min Mat Fac Used RIF Installer . | . . . . . . . Robots Hacked 1 | . . . . . . 1 Non-combat 1 | . . . . . . 1 Combat . | . . . . . . . Robot Hacks Applied 1 | . . . . . . 1 find_recycling 1 | . . . . . . 1 Relay Couplers Released . | . . . . . . . Robots Rewired . | . . . . . . . Allies Hacked . | . . . . . . . Hacks Repelled . | . . . . . . . Allies | -11 -10 -10 -10 -9 -8 -7 -------- Run | Scr Mat Min Exi Min Mat Fac Total Allies . | . . . . . . . Largest Group . | . . . . . . . Highest-Rated Group . | . . . . . . . Highest-Rated Ally . | . . . . . . . Total Orders . | . . . . . . . Ally Attacks . | . . . . . . . Total Damage . | . . . . . . . Kills . | . . . . . . . Allies Corrupted . | . . . . . . . Allies Melted . | . . . . . . . Intel | -11 -10 -10 -10 -9 -8 -7 ------- Run | Scr Mat Min Exi Min Mat Fac Robot Analysis Total 1 | . 1 . . . . . Derelict Logs Recovered 1 | . . 1 . . . . Drone Launches . | . . . . . . . Drone Recoveries . | . . . . . . . Exploration | -11 -10 -10 -10 -9 -8 -7 ------------- Run | Scr Mat Min Exi Min Mat Fac Turns Passed 5979 | 103 1546 281 301 163 3236 349 Spaces Moved 3021 | 51 777 116 168 84 1476 349 Core 18 | 18 . . . . . . Treads 2697 | 33 777 116 168 84 1476 43 Legs . | . . . . . . . Wheels . | . . . . . . . Hover 306 | . . . . . . 306 Flight . | . . . . . . . Fastest Speed 48 | 50 160 180 180 180 160 48 Average Speed 156 | 157 166 180 180 181 166 62 Slowest Speed 250 | 250 180 180 180 220 180 165 Overloaded Moves . | . . . . . . . Propulsion Burnouts . | . . . . . . . Robots Hopped . | . . . . . . . Cave-ins Triggered . | . . . . . . . Exploration Rate (%) 46 | 4 90 36 60 28 94 14 Regions Visited 6 Branch Regions 3 Pre-discovered Areas 1 | . . . 1 . . . Known Exits Taken . | . . . . . . . Unknown Exits Taken 6 | 1 1 1 1 1 1 . Scrap Searched . | . . . . . . . Spaces Dug 34 | . 9 7 . . 14 4 Terrain Destroyed 85 | . 9 43 . 6 23 4 Melee 4 | . . . . . . 4 Projectile . | . . . . . . . AOE 81 | . 9 43 . 6 23 . Terrain Rammed . | . . . . . . . Walls Destroyed . | . . . . . . . Machines Disabled . | . . . . . . . Actions | -11 -10 -10 -10 -9 -8 -7 --------- Run | Scr Mat Min Exi Min Mat Fac Total 3873 | 64 926 164 167 90 1996 466 Wait 291 | . 41 28 . . 150 72 Move 3016 | 51 776 115 167 83 1475 349 Hop . | . . . . . . . Pick Up 88 | 4 19 3 . 1 59 2 Fast Attach 20 | 6 3 . . . 11 . Attach 32 | . 2 1 . 3 13 13 Detach . | . . . . . . . Swap 40 | . 9 1 . . 30 . Drop 91 | . 13 . . . 61 17 Fire 263 | 3 54 16 . 3 185 2 Melee 10 | . . . . . . 10 Ram . | . . . . . . . Kick . | . . . . . . . Crush 22 | . 9 . . . 12 1 Escape Stasis . | . . . . . . . Rewire . | . . . . . . . Trap . | . . . . . . . Miscellaneous . | . . . . . . . Route ------- -11/Scrapyard -10/Materials (discovered 5 exits: [*Mat x3] / [*Min x2]) -10/Mines -10/Exiles (discovered 2 exits: [*Min x2]) -9/Mines -8/Materials (discovered 3 exits: *Fac x3) -7/Factory History --------- Turn | Location | Event 2 | -11/Scrapyard | Discovered new exit (range 16) 104 | -11/Scrapyard | Entered Materials 320 | -10/Materials | Build established: Mutant 464 | -10/Materials | Discovered new exit (range 8) 655 | -10/Materials | Discovered new exit (range 14) 780 | -10/Materials | Repaired Lgt. Treads 952 | -10/Materials | Discovered new exit (range 16) 1192 | -10/Materials | Discovered new exit (range 16) 1429 | -10/Materials | Discovered new exit (range 15) 1434 | -10/Materials | Build established: Hauler-Mutant 1650 | -10/Materials | Entered Mines 1708 | -10/Mines | Learned Materials emergency access door positions 1746 | -10/Mines | Found a damaged Exp. Sensor Array with a note attached 1750 | -10/Mines | Found Prototype Device 1781 | -10/Mines | Assembled infested the area 1846 | -10/Mines | Destroyed 10 combat bots 1924 | -10/Mines | Deemed a non-threat by the Exiles lab entrance 1924 | -10/Mines | Discovered new exit (range 5) 1931 | -10/Mines | Entered Exiles 1958 | -10/Exiles | Discovered new exit (range 15) 1980 | -10/Exiles | Met 8R-AWN 2005 | -10/Exiles | Met EX-HEX 2090 | -10/Exiles | Met EX-DEC 2129 | -10/Exiles | Met EX-BIN 2158 | -10/Exiles | Learned location of Zion (-7) 2218 | -10/Exiles | Discovered new exit (range 10) 2232 | -10/Exiles | Entered Mines 2303 | -9/Mines | Met a Derelict bent on vengeance 2363 | -9/Mines | Discovered new exit (range 15) 2395 | -9/Mines | Entered Materials 2395 | -8/Materials | Evolved 4 slots: Propulsion x2, Utility x2 2705 | -8/Materials | Identified Exp. Sensor Array 2924 | -8/Materials | Build established: Scavenger-Mutant 3183 | -8/Materials | Lost 4 parts (1p1u2w) 3372 | -8/Materials | Central database locked down 3626 | -8/Materials | Destroyed 8 combat bots 3673 | -8/Materials | Discovered new exit (range 15) 3969 | -8/Materials | Discovered new exit (range 10) 4031 | -8/Materials | Build established: Hauler-Mutant 4306 | -8/Materials | Discovered new exit (range 16) 4379 | -8/Materials | Repaired Lgt. Nuclear Core 4461 | -8/Materials | Repaired Exp. Sensor Array 4556 | -8/Materials | Core integrity fell below 50% 5631 | -8/Materials | Entered Factory 5631 | -7/Factory | Evolved 2 slots: Utility x2 5980 | -7/Factory | Self-destructed Last Messages --------------- 05729_ Jacked R-06 Scavenger... >>find_recycling Pinpointed nearest Recycling Unit: (35,107) (added to intel). 05730_ R-06 Scavenger collects Adv. Weight Redist. System. 05818_ O-24 Administrator: "IFF HANDSHAKE FAILED. SECURING TERMINAL." 05823_ O-24 Administrator sends out distress signal. 05825_ ALERT: Hostiles spotted, dispatching reinforcements to Terminal F011. 05884_ Datajack destroyed. 05884_ Connecting with Fabricator... 05884_ Current location identified: Factory 05893_ Connecting with Terminal... 05893_ ALERT: Suspicious activity at Terminal F001. Dispatching Investigation squad. 05894_ W-25 Informer sends out distress signal. 05904_ K-01 Serf collects debris. 05956_ Sneak attack on A-02 Transporter. 05967_ Destroyed Weight Redist. System. 05967_ A-02 Transporter system corrupted by crushing effect. 05973_ W-25 Informer sends out distress signal. Map ----- +----------------------------------------------------+ | ?????????????????????????????????????????????????? | | ?????????????????????????????????????????????????? | | ?????????????????????????????????????????????????? | | ?????????????????????????????????????????????????? | | ?????????????????????????????????????????????????? | | ?????????????????????????????????????????????????? | | ????????????????????k????????????????????????????? | | ?????????????????????????????????????????????????? | | ?????????????????????????????????????????????????? | | ?????????????????????????? k?????????????????????? | | ??????????????????????????u??????????????????????? | | ??????????k??????????????? ??????????????????????? | | ?????????????????????????? ??????????????????????? | | ?????????????????????????? ??????????????????????? | | ?????????????????????????? #?#########???????????? | | ?????????????????????????? # #???????????? | | ???????k?????????????????# # """ """ #???????????? | | ?????????????????????????# # """ """ #???????????? | | ?????????????????????????# # """ """ ###?u???????? | | ?????????????????????????# # + ??????????? | | ?????????????u???????????# # #???????????? | | ?????????????????????????# # #???????????? | | ?????????????????????????# # #???????????? | | ?????????? ########### #####+#####???????????? | | ?????????? s k #????????????? | | ?????????? a s @ #????????????? | | ?????????? s #????????????? | | ?????????? #??########### | | ??????????? #?? # | | ???????w???##############+##### #? # | | ???????????????????????? ????# #? # | | ??????????????????????? ??u?# # # | | ??????????????????????""""????# # # | | ?????k???????????????#"""?????+ + # | | ??????????????????????"""?????#k # # | | ??????????????????????????????# # # | | ??????????????????????????????# #? # | | ??????????????????????????????# #? # | | ??????????????????????????????# #?? # | | ??????????????????????????????#r #?? # | | ??????????????????????????????# ############## | | ??????????????????????????????# # # | | ??????????????????????????????# # # | | ??????????????????????????????# # ! + | | ??????????????????????????????# k# !! # | | ????????k?????????????????????# # !! # | | ???????????k??????????????????# # ! # | | ??????????????????????????????# + u # | | ??????????????????????????????# # """"""" # | | ??????????????????????????????# k# """"""" # | +----------------------------------------------------+ Best States ------------- Heat Dissipation 60 Energy Generation 14 Energy Capacity 280 Matter Stores 300 Matter Capacity 300 Sight Range 16 Robot Scan Range 30 Terrain Scan Density 10 Armor Coverage 150 Propulsion Shielding 66 Weapon Shielding 33 Evasion (%) 55 Recoil Reduction 4 Offensive Hacking 20 Defensive Hacking 10 Item Schematics ----------------- Med. Storage Unit | -10/Materials | Hacked System Shield | -8/Materials | Hacked Hacking Suite | -8/Materials | Scanalyzed Robot Schematics ------------------ None Fabricated ------------ Nothing Alien Tech Used ----------------- None Achievements -------------- None Challenges ------------ None Game ------ Seed ReinforcedTransportCanceller Manual? 0 Play Time 00:30:37 Cumulative 570.9 hours Start 2020.09.15 @ 21:36:52 End 2020.09.15 @ 22:04:56 Sessions 1 Manual Loads 0 Difficulty Rogue Special Mode None Game No. 909 Rogue 909 Adventurer 0 Explorer 0 Win Type - Total 53 Types 34/1/7/8/3/0/0/0/0 Lore% 91 Gallery% 93 Achievement% 82 Wizard Run 0 Options --------- ASCII 1 Keyboard 0 Movement Numpad Keybinds 0 Fullscreen 0 Font 14/SmallcapsGlow Map View 76x50 Tactical HUD 1 Map Filters NONE Filters NONE Steam 1 RUN: 4ea1d814-28ef-4ecb-befa-d28dfdd00a6e